[Event "Latvijas 2022. gada jauniešu čempionāta fināls"]
[Site "Riga, Latvia"]
[Date "2022.06.13"]
[Round "2.2"]
[White "Sokolovskis, Pavels"]
[Black "Springis, Jevgenijs"]
[Result "0-1"]
[TimeControl "3600+30"]
[WhiteElo "1572"]
[BlackElo "1975"]

1. e4 {[%clk 01:00:53]} {[%emt 00:00:06]} c5 {[%clk 01:00:44]} {[%emt
00:00:16]} 2. Nc3 {[%clk 01:01:12]} {[%emt 00:00:12]} d6 {[%clk 01:00:53]}
{[%emt 00:00:22]} 3. f4 {[%clk 01:01:25]} {[%emt 00:00:17]} g6 {[%clk
01:00:25]} {[%emt 00:00:57]} 4. Nf3 {[%clk 01:01:12]} {[%emt 00:00:43]} Bg7
{[%clk 01:00:46]} {[%emt 00:00:08]} 5. Bc4 {[%clk 00:56:45]} {[%emt 00:04:58]}
e6 {[%clk 01:00:47]} {[%emt 00:00:29]} 6. d3 {[%clk 00:56:53]} {[%emt
00:00:22]} Ne7 {[%clk 01:00:41]} {[%emt 00:00:36]} 7. O-O {[%clk 00:56:29]}
{[%emt 00:00:54]} O-O {[%clk 01:00:36]} {[%emt 00:00:35]} 8. Qe1 {[%clk
00:56:20]} {[%emt 00:00:39]} Nbc6 {[%clk 00:51:07]} {[%emt 00:09:59]} 9. Kh1
{[%clk 00:41:39]} {[%emt 00:15:10]} a6 {[%clk 00:46:41]} {[%emt 00:04:56]} 10.
a4 {[%clk 00:39:39]} {[%emt 00:02:31]} Rb8 {[%clk 00:46:24]} {[%emt 00:00:47]}
11. Qh4 {[%clk 00:35:34]} {[%emt 00:04:35]} d5 {[%clk 00:45:37]} {[%emt
00:01:18]} 12. Bb3 {[%clk 00:29:21]} {[%emt 00:06:42]} b5 {[%clk 00:45:08]}
{[%emt 00:01:00]} 13. axb5 {[%clk 00:28:41]} {[%emt 00:01:09]} axb5 {[%clk
00:45:27]} {[%emt 00:00:11]} 14. f5 {[%clk 00:22:37]} {[%emt 00:06:34]} gxf5
{[%clk 00:44:43]} {[%emt 00:01:14]} 15. Bh6 {[%clk 00:21:10]} {[%emt 00:01:56]}
c4 {[%clk 00:39:45]} {[%emt 00:05:28]} 16. Bxg7 {[%clk 00:15:46]} {[%emt
00:05:54]} Kxg7 {[%clk 00:39:37]} {[%emt 00:00:38]} 17. Ba2 {[%clk 00:13:01]}
{[%emt 00:03:16]} Ng6 {[%clk 00:37:07]} {[%emt 00:03:00]} 18. Qxd8 {[%clk
00:09:39]} {[%emt 00:03:52]} Rxd8 {[%clk 00:37:27]} {[%emt 00:00:09]} 19. exd5
{[%clk 00:09:50]} {[%emt 00:00:19]} exd5 {[%clk 00:37:54]} {[%emt 00:00:04]} 20.
Bb1 {[%clk 00:08:27]} {[%emt 00:01:53]} Nge5 {[%clk 00:33:46]} {[%emt
00:04:38]} 21. Nxe5 {[%clk 00:08:06]} {[%emt 00:00:51]} Nxe5 {[%clk 00:34:11]}
{[%emt 00:00:04]} 22. d4 {[%clk 00:08:11]} {[%emt 00:00:26]} Nc6 {[%clk
00:32:42]} {[%emt 00:01:58]} 23. Ne2 {[%clk 00:08:10]} {[%emt 00:00:31]} Re8
{[%clk 00:33:04]} {[%emt 00:00:09]} 24. Nf4 {[%clk 00:07:42]} {[%emt 00:00:58]}
Nxd4 {[%clk 00:32:42]} {[%emt 00:00:52]} 25. Ra7 {[%clk 00:05:16]} {[%emt
00:02:56]} Rb7 {[%clk 00:29:20]} {[%emt 00:03:52]} 26. Ra8 {[%clk 00:05:21]}
{[%emt 00:00:25]} Rbe7 {[%clk 00:28:02]} {[%emt 00:01:48]} 27. c3 {[%clk
00:03:52]} {[%emt 00:01:59]} Nb3 {[%clk 00:26:50]} {[%emt 00:01:41]} 28. Bc2
{[%clk 00:02:51]} {[%emt 00:01:31]} Nd2 {[%clk 00:26:57]} {[%emt 00:00:23]} 29.
Rg1 {[%clk 00:02:57]} {[%emt 00:00:25]} Ne4 {[%clk 00:26:51]} {[%emt 00:00:35]}
30. g3 {[%clk 00:01:56]} {[%emt 00:01:32]} Bb7 {[%clk 00:27:09]} {[%emt
00:00:12]} 0-1

[Event "Latvijas 2022. gada jauniešu čempionāta fināls"]
[Site "Riga, Latvia"]
[Date "2022.06.13"]
[Round "2.3"]
[White "Bogdanovics, Kirills"]
[Black "Stinka, Gustavs"]
[Result "1-0"]
[TimeControl "3600+30"]
[WhiteElo "1785"]
[BlackElo "1086"]

1. d4 {[%clk 01:00:58]} {[%emt 00:00:01]} Nf6 {[%clk 01:00:49]} {[%emt
00:00:10]} 2. c4 {[%clk 01:01:24]} {[%emt 00:00:06]} c5 {[%clk 01:01:08]}
{[%emt 00:00:10]} 3. d5 {[%clk 01:01:46]} {[%emt 00:00:09]} e6 {[%clk
01:01:32]} {[%emt 00:00:06]} 4. Nc3 {[%clk 01:01:59]} {[%emt 00:00:17]} exd5
{[%clk 01:01:54]} {[%emt 00:00:07]} 5. cxd5 {[%clk 01:02:26]} {[%emt 00:00:03]}
d6 {[%clk 01:02:15]} {[%emt 00:00:10]} 6. e4 {[%clk 01:02:42]} {[%emt
00:00:14]} g6 {[%clk 01:02:39]} {[%emt 00:00:05]} 7. Nf3 {[%clk 01:02:51]}
{[%emt 00:00:21]} Bg7 {[%clk 01:02:46]} {[%emt 00:00:24]} 8. Bd3 {[%clk
01:03:02]} {[%emt 00:00:19]} O-O {[%clk 01:03:00]} {[%emt 00:00:15]} 9. O-O
{[%clk 01:02:59]} {[%emt 00:00:33]} Na6 {[%clk 01:03:26]} {[%emt 00:00:05]} 10.
Bg5 {[%clk 01:01:43]} {[%emt 00:01:45]} Nc7 {[%clk 01:02:46]} {[%emt 00:01:11]}
11. h3 {[%clk 01:01:02]} {[%emt 00:01:10]} a6 {[%clk 01:02:23]} {[%emt
00:00:53]} 12. a4 {[%clk 01:01:18]} {[%emt 00:00:14]} b6 {[%clk 01:02:47]}
{[%emt 00:00:07]} 13. Qd2 {[%clk 00:59:12]} {[%emt 00:02:35]} Re8 {[%clk
01:01:38]} {[%emt 00:01:39]} 14. Rfe1 {[%clk 00:45:48]} {[%emt 00:13:54]} Rb8
{[%clk 01:01:51]} {[%emt 00:00:18]} 15. Qe2 {[%clk 00:44:32]} {[%emt 00:01:46]}
Bb7 {[%clk 01:01:05]} {[%emt 00:01:15]} 16. Nh2 {[%clk 00:39:20]} {[%emt
00:05:42]} h6 {[%clk 01:01:10]} {[%emt 00:00:25]} 17. Bh4 {[%clk 00:38:42]}
{[%emt 00:01:08]} g5 {[%clk 01:01:20]} {[%emt 00:00:20]} 18. Bg3 {[%clk
00:39:05]} {[%emt 00:00:07]} Ncxd5 {[%clk 01:01:05]} {[%emt 00:00:45]} 19. Nxd5
{[%clk 00:37:59]} {[%emt 00:01:37]} Bxd5 {[%clk 01:00:17]} {[%emt 00:01:17]} 20.
Qc2 {[%clk 00:38:08]} {[%emt 00:00:21]} Bb7 {[%clk 00:59:32]} {[%emt 00:01:15]}
21. Rad1 {[%clk 00:38:07]} {[%emt 00:00:30]} Nh5 {[%clk 00:55:56]} {[%emt
00:04:07]} 22. Nf1 {[%clk 00:38:02]} {[%emt 00:00:36]} Nxg3 {[%clk 00:56:09]}
{[%emt 00:00:17]} 23. Nxg3 {[%clk 00:38:28]} {[%emt 00:00:04]} Qf6 {[%clk
00:54:49]} {[%emt 00:01:49]} 24. Nf5 {[%clk 00:36:12]} {[%emt 00:02:47]} Rbd8
{[%clk 00:52:47]} {[%emt 00:02:32]} 25. Nxg7 {[%clk 00:35:47]} {[%emt
00:00:54]} Kxg7 {[%clk 00:52:37]} {[%emt 00:00:41]} 26. Bc4 {[%clk 00:34:34]}
{[%emt 00:01:43]} Qf4 {[%clk 00:47:48]} {[%emt 00:05:17]} 27. Re3 {[%clk
00:33:21]} {[%emt 00:01:44]} Rxe4 {[%clk 00:45:44]} {[%emt 00:02:33]} 28. Rxe4
{[%clk 00:31:05]} {[%emt 00:02:47]} Qxe4 {[%clk 00:45:27]} {[%emt 00:00:47]} 29.
Qc3+ {[%clk 00:30:02]} {[%emt 00:01:33]} f6 {[%clk 00:44:17]} {[%emt 00:01:40]}
30. f3 {[%clk 00:30:26]} {[%emt 00:00:07]} Qf4 {[%clk 00:43:45]} {[%emt
00:01:01]} 31. Re1 {[%clk 00:29:26]} {[%emt 00:01:31]} Rd7 {[%clk 00:43:27]}
{[%emt 00:00:48]} 32. Qd3 {[%clk 00:26:11]} {[%emt 00:03:44]} d5 {[%clk
00:39:47]} {[%emt 00:04:10]} 33. Bxa6 {[%clk 00:24:48]} {[%emt 00:01:54]} Bxa6
{[%clk 00:38:31]} {[%emt 00:01:46]} 34. Qxa6 {[%clk 00:25:04]} {[%emt
00:00:14]} Qd4+ {[%clk 00:38:52]} {[%emt 00:00:09]} 35. Kh2 {[%clk 00:24:48]}
{[%emt 00:00:46]} Qxb2 {[%clk 00:38:34]} {[%emt 00:00:48]} 36. Qc8 {[%clk
00:24:35]} {[%emt 00:00:43]} Ra7 {[%clk 00:33:57]} {[%emt 00:05:06]} 37. Re8
{[%clk 00:23:38]} {[%emt 00:01:27]} Qd2 {[%clk 00:31:26]} {[%emt 00:03:01]} 38.
Rg8+ {[%clk 00:23:47]} {[%emt 00:00:22]} Kh7 {[%clk 00:31:45]} {[%emt
00:00:07]} 39. Rh8+ {[%clk 00:21:53]} {[%emt 00:02:28]} Kg6 {[%clk 00:32:06]}
{[%emt 00:00:08]} 40. Qe8+ {[%clk 00:16:26]} {[%emt 00:05:57]} Kf5 {[%clk
00:32:11]} {[%emt 00:00:25]} 41. Qc8+ {[%clk 00:16:49]} {[%emt 00:00:07]} Kf4
{[%clk 00:28:43]} {[%emt 00:03:57]} 42. Re8 {[%clk 00:15:14]} {[%emt 00:02:06]}
h5 {[%clk 00:28:20]} {[%emt 00:00:52]} 43. Qe6 {[%clk 00:14:42]} {[%emt
00:01:03]} Qc3 {[%clk 00:22:13]} {[%emt 00:06:38]} 44. g3+ {[%clk 00:14:46]}
{[%emt 00:00:25]} Kxf3 {[%clk 00:22:35]} {[%emt 00:00:08]} 45. Qe2# {[%emt
00:00:12]} 1-0

[Event "Latvijas 2022. gada jauniešu čempionāta fināls"]
[Site "Riga, Latvia"]
[Date "2022.06.13"]
[Round "2.4"]
[White "Lele, Emili"]
[Black "Kazmerika, Anna"]
[Result "0-1"]
[TimeControl "3600+30"]
[WhiteElo "1233"]
[BlackElo "1657"]

1. e4 {[%clk 01:00:48]} {[%emt 00:00:12]} Nf6 {[%clk 01:00:54]} {[%emt
00:00:07]} 2. Nc3 {[%clk 01:00:41]} {[%emt 00:00:36]} d5 {[%clk 01:01:17]}
{[%emt 00:00:07]} 3. exd5 {[%clk 00:58:49]} {[%emt 00:02:23]} Nxd5 {[%clk
01:01:40]} {[%emt 00:00:07]} 4. Bc4 {[%clk 00:58:45]} {[%emt 00:00:34]} Nb6
{[%clk 01:01:57]} {[%emt 00:00:13]} 5. Bb3 {[%clk 00:58:32]} {[%emt 00:00:43]}
Nc6 {[%clk 01:00:56]} {[%emt 00:01:31]} 6. Nf3 {[%clk 00:57:36]} {[%emt
00:01:26]} Bg4 {[%clk 00:59:11]} {[%emt 00:02:15]} 7. h3 {[%clk 00:52:47]}
{[%emt 00:05:18]} Bh5 {[%clk 00:58:40]} {[%emt 00:01:01]} 8. g4 {[%clk
00:52:33]} {[%emt 00:00:44]} Bg6 {[%clk 00:58:14]} {[%emt 00:00:56]} 9. d3
{[%clk 00:51:52]} {[%emt 00:01:12]} e6 {[%clk 00:53:59]} {[%emt 00:04:44]} 10.
Be3 {[%clk 00:50:17]} {[%emt 00:02:06]} Be7 {[%clk 00:49:17]} {[%emt 00:05:12]}
11. Qd2 {[%clk 00:45:26]} {[%emt 00:05:20]} Qd7 {[%clk 00:47:04]} {[%emt
00:02:43]} 12. a4 {[%clk 00:33:31]} {[%emt 00:12:27]} Nd5 {[%clk 00:30:25]}
{[%emt 00:17:08]} 13. Nxd5 {[%clk 00:26:03]} {[%emt 00:07:57]} exd5 {[%clk
00:30:48]} {[%emt 00:00:07]} 14. d4 {[%clk 00:25:17]} {[%emt 00:01:16]} Be4
{[%clk 00:28:01]} {[%emt 00:03:17]} 15. Qe2 {[%clk 00:23:53]} {[%emt 00:01:52]}
h5 {[%clk 00:23:49]} {[%emt 00:04:44]} 16. O-O-O {[%clk 00:18:16]} {[%emt
00:06:07]} O-O-O {[%clk 00:18:53]} {[%emt 00:05:26]} 17. Rhg1 {[%clk 00:17:34]}
{[%emt 00:01:12]} hxg4 {[%clk 00:17:42]} {[%emt 00:01:41]} 18. hxg4 {[%clk
00:17:22]} {[%emt 00:00:42]} Na5 {[%clk 00:17:27]} {[%emt 00:00:44]} 19. Ne5
{[%clk 00:15:28]} {[%emt 00:02:25]} Nxb3+ {[%clk 00:17:49]} {[%emt 00:00:08]}
20. cxb3 {[%clk 00:15:46]} {[%emt 00:00:12]} Qe6 {[%clk 00:18:02]} {[%emt
00:00:16]} 21. Bd2 {[%clk 00:13:42]} {[%emt 00:02:35]} Bh7 {[%clk 00:05:13]}
{[%emt 00:13:19]} 22. Rde1 {[%clk 00:07:44]} {[%emt 00:06:28]} Rhe8 {[%clk
00:01:11]} {[%emt 00:04:32]} 23. Rh1 {[%clk 00:03:30]} {[%emt 00:04:44]} Bg6
{[%clk 00:00:53]} {[%emt 00:00:49]} 24. Nxg6 {[%clk 00:03:22]} {[%emt
00:00:37]} Qxg6 {[%clk 00:01:18]} {[%emt 00:00:04]} 25. Qf3 {[%clk 00:01:31]}
{[%emt 00:02:22]} Qf6 {[%clk 00:01:17]} {[%emt 00:00:32]} 26. Qxf6 {[%clk
00:01:18]} {[%emt 00:00:42]} Bxf6 {[%clk 00:01:46]} {[%emt 00:00:02]} 27. Bc3
{[%clk 00:01:30]} {[%emt 00:00:17]} Kd7 {[%clk 00:00:58]} {[%emt 00:01:17]} 28.
Kc2 {[%clk 00:01:40]} {[%emt 00:00:20]} Rxe1 {[%clk 00:01:03]} {[%emt
00:00:25]} 29. Rxe1 {[%clk 00:02:08]} {[%emt 00:00:02]} Rh8 {[%clk 00:01:26]}
{[%emt 00:00:08]} 30. f3 {[%clk 00:01:39]} {[%emt 00:01:00]} c6 {[%clk
00:00:59]} {[%emt 00:00:57]} 31. Rf1 {[%clk 00:01:10]} {[%emt 00:00:58]} Rh4
{[%clk 00:01:11]} {[%emt 00:00:17]} 32. Be1 {[%clk 00:00:38]} {[%emt 00:01:03]}
Rh3 {[%clk 00:01:29]} {[%emt 00:00:12]} 33. Bc3 {[%clk 00:01:01]} {[%emt
00:00:08]} Be7 {[%clk 00:01:14]} {[%emt 00:00:44]} 34. Kd3 {[%clk 00:00:49]}
{[%emt 00:00:42]} Bg5 {[%clk 00:00:46]} {[%emt 00:00:58]} 35. Kc2 {[%clk
00:00:36]} {[%emt 00:00:43]} Bf4 {[%clk 00:01:09]} {[%emt 00:00:07]} 36. Kd3
{[%clk 00:00:32]} {[%emt 00:00:34]} Rh2 {[%clk 00:01:22]} {[%emt 00:00:17]} 37.
Rb1 {[%clk 00:00:40]} {[%emt 00:00:22]} Rf2 {[%clk 00:01:23]} {[%emt 00:00:29]}
38. Rh1 {[%clk 00:00:31]} {[%emt 00:00:39]} Rxf3+ {[%clk 00:01:36]} {[%emt
00:00:17]} 39. Kc2 {[%clk 00:01:01]} Rg3 {[%clk 00:00:57]} {[%emt 00:01:08]} 40.
Bb4 {[%clk 00:00:32]} {[%emt 00:00:59]} Rxg4 {[%clk 00:00:57]} {[%emt
00:00:31]} 41. Bf8 {[%clk 00:00:55]} {[%emt 00:00:07]} Bd6 {[%clk 00:01:13]}
{[%emt 00:00:13]} 42. Bxd6 {[%clk 00:01:03]} {[%emt 00:00:22]} Kxd6 {[%clk
00:01:42]} {[%emt 00:00:02]} 43. Kc3 {[%clk 00:01:24]} {[%emt 00:00:09]} Rg3+
{[%clk 00:01:53]} {[%emt 00:00:18]} 44. Kc2 {[%clk 00:01:44]} {[%emt 00:00:10]}
f5 {[%clk 00:02:08]} {[%emt 00:00:15]} 45. Re1 {[%clk 00:01:43]} {[%emt
00:00:32]} a6 {[%clk 00:02:23]} {[%emt 00:00:15]} 46. Re5 {[%clk 00:02:03]}
{[%emt 00:00:09]} f4 {[%clk 00:02:38]} {[%emt 00:00:15]} 47. Re1 {[%clk
00:02:19]} {[%emt 00:00:14]} g5 {[%clk 00:03:01]} {[%emt 00:00:07]} 48. Rf1
{[%clk 00:02:26]} {[%emt 00:00:23]} Ke6 {[%clk 00:03:11]} {[%emt 00:00:20]} 49.
b4 {[%clk 00:02:45]} {[%emt 00:00:11]} Kf5 {[%clk 00:03:32]} {[%emt 00:00:09]}
50. Re1 {[%clk 00:03:03]} {[%emt 00:00:11]} Re3 {[%clk 00:03:34]} {[%emt
00:00:29]} 51. Rf1 {[%clk 00:03:06]} {[%emt 00:00:28]} g4 {[%clk 00:03:55]}
{[%emt 00:00:09]} 52. Kd2 {[%clk 00:03:25]} {[%emt 00:00:10]} Ke4 {[%clk
00:04:06]} {[%emt 00:00:18]} 53. a5 {[%clk 00:03:33]} {[%emt 00:00:24]} f3
{[%clk 00:04:13]} {[%emt 00:00:22]} 54. Rg1 {[%clk 00:03:17]} {[%emt 00:00:45]}
Re2+ {[%clk 00:04:38]} {[%emt 00:00:06]} 55. Kd1 {[%clk 00:03:36]} {[%emt
00:00:11]} Kf4 {[%clk 00:05:00]} {[%emt 00:00:08]} 56. Rf1 {[%clk 00:03:38]}
{[%emt 00:00:28]} g3 {[%clk 00:05:24]} {[%emt 00:00:06]} 57. Re1 {[%clk
00:03:38]} {[%emt 00:00:30]} g2 {[%clk 00:05:29]} {[%emt 00:00:25]} 58. Rxe2
{[%clk 00:03:36]} {[%emt 00:00:32]} fxe2+ {[%clk 00:05:51]} {[%emt 00:00:08]}
59. Kxe2 {[%clk 00:03:53]} {[%emt 00:00:13]} g1=Q {[%clk 00:06:15]} {[%emt
00:00:06]} 0-1

[Event "Latvijas 2022. gada jauniešu čempionāta fināls"]
[Site "Riga, Latvia"]
[Date "2022.06.13"]
[Round "2.5"]
[White "Andrusevics, Jegors"]
[Black "Platonovs, Nikolajs"]
[Result "0-1"]
[TimeControl "3600+30"]
[WhiteElo "1569"]
[BlackElo "1422"]

1. d4 {[%clk 00:59:13]} {[%emt 00:00:46]} d5 {[%clk 01:00:50]} {[%emt
00:00:10]} 2. Nf3 {[%clk 00:59:19]} {[%emt 00:00:24]} Nf6 {[%clk 01:01:14]}
{[%emt 00:00:06]} 3. Bf4 {[%clk 00:59:30]} {[%emt 00:00:17]} c5 {[%clk
01:01:34]} {[%emt 00:00:12]} 4. e3 {[%clk 00:58:33]} {[%emt 00:01:28]} Nc6
{[%clk 01:01:56]} {[%emt 00:00:08]} 5. c3 {[%clk 00:57:41]} {[%emt 00:01:21]}
Qb6 {[%clk 01:02:03]} {[%emt 00:00:21]} 6. Qc2 {[%clk 00:57:25]} {[%emt
00:00:48]} g6 {[%clk 01:02:15]} {[%emt 00:00:18]} 7. Na3 {[%clk 00:45:43]}
{[%emt 00:12:12]} a6 {[%clk 01:01:08]} {[%emt 00:01:38]} 8. Qb3 {[%clk
00:45:17]} {[%emt 00:00:56]} Qxb3 {[%clk 01:00:52]} {[%emt 00:00:45]} 9. axb3
{[%clk 00:45:26]} {[%emt 00:00:21]} cxd4 {[%clk 01:00:15]} {[%emt 00:01:08]} 10.
exd4 {[%clk 00:44:47]} {[%emt 00:01:09]} Bg4 {[%clk 00:58:58]} {[%emt
00:01:45]} 11. Ne5 {[%clk 00:42:49]} {[%emt 00:02:29]} Nxe5 {[%clk 00:59:12]}
{[%emt 00:00:16]} 12. Bxe5 {[%clk 00:43:03]} {[%emt 00:00:16]} Bh6 {[%clk
00:58:25]} {[%emt 00:01:18]} 13. Be2 {[%clk 00:40:53]} {[%emt 00:02:40]} Bxe2
{[%clk 00:58:12]} {[%emt 00:00:42]} 14. Kxe2 {[%clk 00:40:46]} {[%emt
00:00:37]} O-O {[%clk 00:57:42]} {[%emt 00:01:00]} 15. Nc2 {[%clk 00:40:24]}
{[%emt 00:00:52]} Nd7 {[%clk 00:57:00]} {[%emt 00:01:13]} 16. Rad1 {[%clk
00:37:32]} {[%emt 00:03:22]} f6 {[%clk 00:55:17]} {[%emt 00:02:12]} 17. Bg3
{[%clk 00:37:45]} {[%emt 00:00:17]} Kf7 {[%clk 00:55:34]} {[%emt 00:00:13]} 18.
Rhe1 {[%clk 00:37:29]} {[%emt 00:00:45]} Rfe8 {[%clk 00:54:09]} {[%emt
00:01:54]} 19. Kf1 {[%clk 00:36:56]} {[%emt 00:01:05]} Bg7 {[%clk 00:53:42]}
{[%emt 00:00:57]} 20. Ne3 {[%clk 00:35:48]} {[%emt 00:01:37]} e6 {[%clk
00:52:57]} {[%emt 00:01:16]} 21. c4 {[%clk 00:35:04]} {[%emt 00:01:15]} dxc4
{[%emt 00:00:56]} 22. Nxc4 {[%clk 00:33:21]} {[%emt 00:02:12]} Bf8 {[%clk
00:52:55]} {[%emt 00:00:07]} 23. Bd6 {[%clk 00:32:37]} {[%emt 00:01:14]} b5
{[%clk 00:52:28]} {[%emt 00:00:57]} 24. Bxf8 {[%clk 00:32:21]} {[%emt
00:00:45]} bxc4 {[%clk 00:52:53]} {[%emt 00:00:05]} 25. Ba3 {[%clk 00:32:29]}
{[%emt 00:00:22]} cxb3 {[%clk 00:52:56]} {[%emt 00:00:28]} 26. Re3 {[%clk
00:32:55]} {[%emt 00:00:03]} Rab8 {[%clk 00:52:15]} {[%emt 00:01:11]} 27. Rdd3
{[%clk 00:33:04]} {[%emt 00:00:21]} Nb6 {[%clk 00:51:05]} {[%emt 00:01:40]} 28.
Rxb3 {[%clk 00:32:35]} {[%emt 00:00:59]} Nd5 {[%clk 00:47:43]} {[%emt
00:03:52]} 29. Red3 {[%clk 00:31:19]} {[%emt 00:01:46]} Red8 {[%clk 00:47:48]}
{[%emt 00:00:24]} 30. g3 {[%clk 00:29:18]} {[%emt 00:02:32]} a5 {[%clk
00:47:14]} {[%emt 00:01:04]} 31. Rxb8 {[%clk 00:28:16]} {[%emt 00:01:32]} Rxb8
{[%clk 00:47:31]} {[%emt 00:00:13]} 32. Ke2 {[%clk 00:28:22]} {[%emt 00:00:25]}
Ke8 {[%clk 00:47:18]} {[%emt 00:00:41]} 33. Kd2 {[%clk 00:28:31]} {[%emt
00:00:22]} Kd7 {[%clk 00:47:05]} {[%emt 00:00:43]} 34. Kc2 {[%clk 00:28:40]}
{[%emt 00:00:21]} a4 {[%clk 00:43:58]} {[%emt 00:03:38]} 35. b3 {[%clk
00:27:47]} {[%emt 00:01:23]} axb3+ {[%clk 00:43:54]} {[%emt 00:00:35]} 36. Rxb3
{[%clk 00:28:08]} {[%emt 00:00:08]} Rxb3 {[%clk 00:44:18]} {[%emt 00:00:06]} 37.
Kxb3 {[%clk 00:28:26]} {[%emt 00:00:10]} Kc6 {[%clk 00:44:31]} {[%emt
00:00:18]} 38. Kc4 {[%clk 00:28:11]} {[%emt 00:00:45]} Nb6+ {[%clk 00:44:54]}
{[%emt 00:00:07]} 39. Kd3 {[%clk 00:28:33]} {[%emt 00:00:08]} Kd5 {[%clk
00:45:18]} {[%emt 00:00:07]} 40. f4 {[%clk 00:28:26]} {[%emt 00:00:37]} Nd7
{[%clk 00:45:02]} {[%emt 00:00:46]} 41. Ke3 {[%clk 00:28:10]} {[%emt 00:00:45]}
f5 {[%clk 00:44:48]} {[%emt 00:00:44]} 42. Kd3 {[%clk 00:28:18]} {[%emt
00:00:23]} Nf6 {[%clk 00:45:06]} {[%emt 00:00:11]} 43. Bb4 {[%clk 00:28:26]}
{[%emt 00:00:22]} Ng4 {[%clk 00:45:05]} {[%emt 00:00:32]} 44. h3 {[%clk
00:25:39]} {[%emt 00:03:17]} Nf2+ {[%clk 00:45:16]} {[%emt 00:00:19]} 45. Ke3
{[%clk 00:26:00]} {[%emt 00:00:09]} Nxh3 {[%clk 00:42:08]} {[%emt 00:03:38]} 46.
Be7 {[%clk 00:24:18]} {[%emt 00:02:12]} h6 {[%clk 00:40:28]} {[%emt 00:02:09]}
47. Bf8 {[%clk 00:23:50]} {[%emt 00:00:58]} g5 {[%clk 00:40:40]} {[%emt
00:00:18]} 48. Bxh6 {[%clk 00:24:06]} {[%emt 00:00:14]} g4 {[%clk 00:40:55]}
{[%emt 00:00:15]} 49. Bg7 {[%clk 00:24:00]} {[%emt 00:00:36]} Ng1 {[%clk
00:40:47]} {[%emt 00:00:37]} 50. Bf6 {[%clk 00:24:21]} {[%emt 00:00:10]} Kc4
{[%clk 00:41:04]} {[%emt 00:00:14]} 51. Bh4 {[%clk 00:24:35]} {[%emt 00:00:15]}
Nf3 {[%clk 00:41:12]} {[%emt 00:00:22]} 52. Bf6 {[%clk 00:24:57]} {[%emt
00:00:08]} Ne1 {[%clk 00:41:36]} {[%emt 00:00:06]} 53. Kd2 {[%clk 00:25:08]}
{[%emt 00:00:20]} Nd3 {[%clk 00:41:46]} {[%emt 00:00:19]} 54. Bg7 {[%clk
00:25:08]} {[%emt 00:00:31]} Nf2 {[%clk 00:41:53]} {[%emt 00:00:22]} 55. Ke3
{[%clk 00:24:05]} {[%emt 00:01:34]} Ne4 {[%clk 00:42:19]} {[%emt 00:00:04]} 56.
Be5 {[%clk 00:24:28]} {[%emt 00:00:07]} Nxg3 {[%clk 00:42:42]} {[%emt
00:00:06]} 57. Kf2 {[%clk 00:24:53]} {[%emt 00:00:04]} Ne4+ {[%clk 00:43:01]}
{[%emt 00:00:11]} 58. Ke3 {[%clk 00:25:18]} {[%emt 00:00:06]} Kd5 {[%clk
00:42:46]} {[%emt 00:00:46]} 59. Ke2 {[%clk 00:25:16]} {[%emt 00:00:31]} Kc4
{[%clk 00:42:48]} {[%emt 00:00:29]} 60. Ke3 {[%clk 00:25:40]} {[%emt 00:00:06]}
Kb3 {[%clk 00:41:10]} {[%emt 00:02:08]} 61. Bg7 {[%clk 00:25:03]} {[%emt
00:01:06]} Kc2 {[%clk 00:41:16]} {[%emt 00:00:25]} 62. Bh8 {[%clk 00:24:15]}
{[%emt 00:01:17]} Kd1 {[%clk 00:41:40]} {[%emt 00:00:06]} 63. d5 {[%clk
00:24:10]} {[%emt 00:00:36]} exd5 {[%clk 00:42:02]} {[%emt 00:00:07]} 64. Kd4
{[%clk 00:24:29]} {[%emt 00:00:12]} g3 {[%clk 00:41:26]} {[%emt 00:01:06]} 65.
Kxd5 {[%clk 00:24:14]} {[%emt 00:00:45]} Ke2 {[%clk 00:41:31]} {[%emt
00:00:24]} 66. Ke6 {[%clk 00:23:50]} {[%emt 00:00:54]} g2 {[%clk 00:41:53]}
{[%emt 00:00:09]} 67. Bd4 {[%clk 00:24:13]} {[%emt 00:00:06]} Nf2 {[%clk
00:42:19]} {[%emt 00:00:04]} 0-1

[Event "Latvijas 2022. gada jauniešu čempionāta fināls"]
[Site "Riga, Latvia"]
[Date "2022.06.13"]
[Round "2.6"]
[White "Merzlovs, Timurs"]
[Black "Valdats, Reinis"]
[Result "0-1"]
[TimeControl "3600+30"]
[WhiteElo "1152"]
[BlackElo "1488"]

1. e4 {[%clk 01:00:58]} {[%emt 00:00:01]} c5 {[%clk 01:00:57]} {[%emt
00:00:04]} 2. f4 {[%clk 01:01:21]} {[%emt 00:00:06]} Nc6 {[%clk 00:57:46]}
{[%emt 00:03:42]} 3. Nf3 {[%clk 01:01:35]} {[%emt 00:00:16]} d6 {[%clk
00:57:19]} {[%emt 00:00:57]} 4. Bc4 {[%clk 01:00:24]} {[%emt 00:01:40]} e6
{[%clk 00:53:52]} {[%emt 00:04:30]} 5. O-O {[%clk 01:00:39]} {[%emt 00:00:42]}
Nf6 {[%clk 00:53:42]} {[%emt 00:00:41]} 6. Nc3 {[%clk 01:00:37]} {[%emt
00:00:32]} Be7 {[%clk 00:53:17]} {[%emt 00:00:55]} 7. b3 {[%clk 00:53:01]}
{[%emt 00:08:06]} O-O {[%clk 00:52:43]} {[%emt 00:01:04]} 8. Bb2 {[%clk
00:53:02]} {[%emt 00:00:29]} a6 {[%clk 00:51:54]} {[%emt 00:01:18]} 9. a4
{[%clk 00:53:07]} {[%emt 00:00:25]} d5 {[%clk 00:49:27]} {[%emt 00:02:57]} 10.
exd5 {[%clk 00:51:55]} {[%emt 00:01:42]} exd5 {[%clk 00:49:42]} {[%emt
00:00:16]} 11. Be2 {[%clk 00:51:00]} {[%emt 00:01:24]} d4 {[%clk 00:44:41]}
{[%emt 00:05:32]} 12. Nb1 {[%clk 00:50:54]} {[%emt 00:00:36]} Nd5 {[%clk
00:37:37]} {[%emt 00:07:34]} 13. Ne5 {[%clk 00:49:28]} {[%emt 00:01:55]} Nxf4
{[%clk 00:35:19]} {[%emt 00:02:48]} 14. Nd3 {[%clk 00:46:41]} {[%emt 00:03:17]}
Nxe2+ {[%clk 00:32:43]} {[%emt 00:03:06]} 15. Qxe2 {[%clk 00:47:00]} {[%emt
00:00:11]} Bd6 {[%clk 00:32:01]} {[%emt 00:01:12]} 16. Na3 {[%clk 00:47:11]}
{[%emt 00:00:20]} Be6 {[%clk 00:28:06]} {[%emt 00:04:25]} 17. Qh5 {[%clk
00:46:26]} {[%emt 00:01:14]} g6 {[%clk 00:25:55]} {[%emt 00:02:41]} 18. Qh6
{[%clk 00:46:35]} {[%emt 00:00:20]} Ne7 {[%clk 00:23:42]} {[%emt 00:02:44]} 19.
Nc4 {[%clk 00:46:17]} {[%emt 00:00:49]} Nf5 {[%clk 00:22:25]} {[%emt 00:01:46]}
20. Rxf5 {[%emt 00:02:07]} Bxf5 {[%emt 00:00:06]} 21. Nxd6 {[%emt 00:00:07]}
Qxd6 {[%emt 00:00:01]} 0-1